[Event "MČR juniorů a juniorek v rapid šachu 2023"]
[Site "Czech Republic"]
[Date "2023.09.23"]
[Round "1.6"]
[White "Stejskal, Michal"]
[Black "Zadrapova, Amalie"]
[Result "0-1"]
[TimeControl "20 min + 5 sec per move"]
[WhiteFideId "398195"]
[BlackFideId "23710276"]
[WhiteElo "1959"]
[BlackElo "1590"]

1. Nf3 {[%clk 00:20:05]} {[%emt 00:00:03]} Nf6 {[%clk 00:20:08]} {[%emt
00:00:02]} 2. g3 {[%clk 00:20:07]} {[%emt 00:00:04]} g6 {[%clk 00:20:11]}
{[%emt 00:00:03]} 3. Bg2 {[%clk 00:20:10]} Bg7 {[%clk 00:20:14]} {[%emt
00:00:02]} 4. c4 {[%clk 00:20:13]} {[%emt 00:00:02]} c6 {[%clk 00:20:06]}
{[%emt 00:00:13]} 5. O-O {[%clk 00:20:13]} {[%emt 00:00:04]} O-O {[%clk
00:20:08]} {[%emt 00:00:04]} 6. Nc3 {[%clk 00:20:16]} {[%emt 00:00:02]} d5
{[%clk 00:20:00]} {[%emt 00:00:14]} 7. d4 {[%clk 00:20:16]} {[%emt 00:00:05]}
Nbd7 {[%clk 00:19:45]} {[%emt 00:00:20]} 8. Bf4 {[%clk 00:20:09]} {[%emt
00:00:11]} dxc4 {[%clk 00:18:51]} {[%emt 00:01:00]} 9. e4 {[%clk 00:19:54]}
{[%emt 00:00:20]} Nh5 {[%clk 00:17:25]} {[%emt 00:01:32]} 10. Be3 {[%clk
00:19:11]} {[%emt 00:00:47]} e5 {[%clk 00:16:16]} {[%emt 00:01:14]} 11. d5
{[%clk 00:18:59]} {[%emt 00:00:18]} cxd5 {[%clk 00:15:51]} {[%emt 00:00:29]} 12.
Nxd5 {[%clk 00:18:49]} {[%emt 00:00:14]} Nhf6 {[%clk 00:12:50]} {[%emt
00:03:07]} 13. Nd2 {[%clk 00:17:16]} {[%emt 00:01:37]} b5 {[%clk 00:10:36]}
{[%emt 00:02:20]} 14. a4 {[%clk 00:16:26]} {[%emt 00:00:55]} Ba6 {[%clk
00:10:10]} {[%emt 00:00:31]} 15. axb5 {[%clk 00:15:51]} {[%emt 00:00:40]} Bxb5
{[%clk 00:10:09]} {[%emt 00:00:07]} 16. Nc3 {[%clk 00:15:54]} {[%emt 00:00:01]}
a6 {[%clk 00:09:45]} {[%emt 00:00:30]} 17. Re1 {[%clk 00:14:40]} {[%emt
00:01:18]} Rc8 {[%clk 00:08:41]} {[%emt 00:01:09]} 18. Qc2 {[%clk 00:12:59]}
{[%emt 00:01:45]} Ng4 {[%clk 00:07:06]} {[%emt 00:01:41]} 19. Bh3 {[%clk
00:12:30]} {[%emt 00:00:33]} Nxe3 {[%clk 00:06:55]} {[%emt 00:00:17]} 20. Rxe3
{[%clk 00:12:33]} {[%emt 00:00:02]} Rc6 {[%clk 00:06:16]} {[%emt 00:00:45]} 21.
Rd1 {[%clk 00:09:56]} {[%emt 00:02:41]} Rd6 {[%clk 00:05:38]} {[%emt 00:00:44]}
22. Ree1 {[%clk 00:09:26]} {[%emt 00:00:35]} Nc5 {[%clk 00:05:18]} {[%emt
00:00:25]} 23. Nxb5 {[%clk 00:08:59]} {[%emt 00:00:31]} axb5 {[%clk 00:05:19]}
{[%emt 00:00:05]} 24. Bf1 {[%clk 00:08:54]} {[%emt 00:00:09]} Qd7 {[%clk
00:04:44]} {[%emt 00:00:40]} 25. Be2 {[%clk 00:07:22]} {[%emt 00:01:37]} Rd8
{[%clk 00:04:40]} {[%emt 00:00:10]} 26. Nf1 {[%clk 00:06:25]} {[%emt 00:01:01]}
Nd3 {[%clk 00:04:28]} {[%emt 00:00:17]} 27. Bxd3 {[%clk 00:06:24]} {[%emt
00:00:06]} Rxd3 {[%clk 00:04:27]} {[%emt 00:00:06]} 28. Ne3 {[%clk 00:06:18]}
{[%emt 00:00:10]} f5 {[%clk 00:03:42]} {[%emt 00:00:52]} 29. exf5 {[%clk
00:06:07]} {[%emt 00:00:16]} gxf5 {[%clk 00:03:44]} {[%emt 00:00:03]} 30. Rxd3
{[%clk 00:06:05]} {[%emt 00:00:06]} cxd3 {[%clk 00:03:36]} {[%emt 00:00:13]} 31.
Qb3+ {[%clk 00:06:09]} {[%emt 00:00:02]} Kh8 {[%clk 00:03:35]} {[%emt
00:00:06]} 32. Rd1 {[%clk 00:06:09]} {[%emt 00:00:04]} e4 {[%clk 00:03:24]}
{[%emt 00:00:16]} 33. Kg2 {[%clk 00:04:53]} {[%emt 00:01:21]} Rg8 {[%clk
00:02:56]} {[%emt 00:00:34]} 34. Nf1 {[%clk 00:04:19]} {[%emt 00:00:38]} f4
{[%clk 00:02:48]} {[%emt 00:00:13]} 35. h3 {[%clk 00:03:38]} {[%emt 00:00:46]}
Bd4 {[%clk 00:02:35]} {[%emt 00:00:19]} 36. Qb4 {[%clk 00:03:34]} {[%emt
00:00:08]} fxg3 {[%clk 00:02:12]} {[%emt 00:00:28]} 37. Nxg3 {[%clk 00:03:37]}
{[%emt 00:00:02]} Qg7 {[%clk 00:01:35]} {[%emt 00:00:42]} 38. Rg1 {[%clk
00:03:21]} {[%emt 00:00:21]} e3 {[%clk 00:01:22]} {[%emt 00:00:18]} 39. Kf1
{[%clk 00:03:01]} {[%emt 00:00:25]} exf2 {[%clk 00:01:13]} {[%emt 00:00:15]} 40.
Rg2 {[%clk 00:03:04]} Qe5 {[%clk 00:01:01]} {[%emt 00:00:17]} 41. h4 {[%clk
00:02:48]} {[%emt 00:00:21]} Be3 {[%clk 00:00:35]} {[%emt 00:00:31]} 42. Qb3
{[%clk 00:01:40]} {[%emt 00:01:13]} Bd2 {[%clk 00:00:29]} {[%emt 00:00:11]} 43.
Qxg8+ {[%clk 00:01:18]} {[%emt 00:00:27]} Kxg8 {[%clk 00:00:33]} 44. Ne4+
{[%clk 00:01:22]} Kf7 {[%clk 00:00:35]} {[%emt 00:00:04]} 45. Rxf2+ {[%clk
00:01:19]} {[%emt 00:00:09]} Ke7 {[%clk 00:00:38]} 46. Nxd2 {[%clk 00:01:21]}
{[%emt 00:00:03]} Qxb2 {[%clk 00:00:35]} {[%emt 00:00:09]} 47. Kg2 {[%clk
00:01:19]} {[%emt 00:00:06]} Qg7+ {[%clk 00:00:37]} {[%emt 00:00:03]} 48. Kf3
{[%clk 00:01:20]} {[%emt 00:00:05]} b4 {[%clk 00:00:40]} {[%emt 00:00:02]} 49.
Ke3 {[%clk 00:01:23]} Qc3 {[%clk 00:00:42]} {[%emt 00:00:04]} 50. Ne4 {[%clk
00:01:22]} {[%emt 00:00:06]} Qa3 {[%clk 00:00:36]} {[%emt 00:00:09]} 51. Rd2
{[%clk 00:01:23]} {[%emt 00:00:05]} Qa7+ {[%clk 00:00:37]} {[%emt 00:00:05]} 52.
Kxd3 {[%clk 00:01:24]} {[%emt 00:00:03]} b3 {[%clk 00:00:39]} {[%emt 00:00:03]}
53. Re2 {[%clk 00:01:25]} {[%emt 00:00:04]} Kd8 {[%clk 00:00:42]} {[%emt
00:00:02]} 54. Kc3 {[%clk 00:01:14]} {[%emt 00:00:16]} Qb7 {[%clk 00:00:44]}
{[%emt 00:00:03]} 55. Nc5 {[%clk 00:01:05]} {[%emt 00:00:27]} Qf3+ {[%clk
00:00:50]} {[%emt 00:00:17]} 0-1

[Event "MČR juniorů a juniorek v rapid šachu 2023"]
[Site "Czech Republic"]
[Date "2023.09.23"]
[Round "1.7"]
[White "Pejrimovska, Viola Ruby"]
[Black "Tegda, Vojtech"]
[Result "1-0"]
[TimeControl "20 min + 5 sec per move"]
[WhiteFideId "23709529"]
[BlackFideId "23723424"]
[WhiteElo "1581"]
[BlackElo "1959"]

1. e4 {[%clk 00:20:07]} {[%emt 00:00:01]} e5 {[%clk 00:20:07]} {[%emt
00:00:04]} 2. Nf3 {[%clk 00:20:10]} {[%emt 00:00:02]} Nc6 {[%clk 00:20:02]}
{[%emt 00:00:10]} 3. d4 {[%clk 00:20:00]} {[%emt 00:00:16]} exd4 {[%clk
00:19:49]} {[%emt 00:00:17]} 4. Nxd4 {[%clk 00:20:02]} {[%emt 00:00:02]} Bc5
{[%clk 00:19:43]} {[%emt 00:00:11]} 5. Be3 {[%clk 00:20:05]} {[%emt 00:00:03]}
Qf6 {[%clk 00:19:07]} {[%emt 00:00:40]} 6. c3 {[%clk 00:20:08]} {[%emt
00:00:03]} Nge7 {[%clk 00:18:09]} {[%emt 00:01:03]} 7. g3 {[%clk 00:19:33]}
{[%emt 00:00:41]} d6 {[%clk 00:17:17]} {[%emt 00:00:57]} 8. Bg2 {[%clk
00:18:58]} {[%emt 00:00:40]} Bb6 {[%clk 00:15:52]} {[%emt 00:01:29]} 9. O-O
{[%clk 00:18:27]} {[%emt 00:00:36]} O-O {[%clk 00:15:16]} {[%emt 00:00:41]} 10.
f4 {[%clk 00:12:19]} {[%emt 00:06:13]} Bd7 {[%clk 00:11:36]} {[%emt 00:03:45]}
11. h3 {[%clk 00:09:22]} {[%emt 00:03:02]} Qh6 {[%clk 00:09:26]} {[%emt
00:02:15]} 12. g4 {[%clk 00:07:46]} {[%emt 00:01:41]} f6 {[%clk 00:07:07]}
{[%emt 00:02:24]} 13. Qf3 {[%clk 00:04:06]} {[%emt 00:03:46]} Qg6 {[%clk
00:06:26]} {[%emt 00:00:46]} 14. Nd2 {[%clk 00:02:45]} {[%emt 00:01:25]} Qf7
{[%clk 00:05:02]} {[%emt 00:01:28]} 15. Rfe1 {[%clk 00:02:49]} {[%emt
00:00:02]} Rfe8 {[%clk 00:03:16]} {[%emt 00:01:52]} 16. Kh1 {[%clk 00:02:52]}
{[%emt 00:00:02]} Rad8 {[%clk 00:02:50]} {[%emt 00:00:30]} 17. Nf1 {[%clk
00:02:04]} {[%emt 00:00:54]} Na5 {[%clk 00:01:40]} {[%emt 00:01:15]} 18. b3
{[%clk 00:01:26]} {[%emt 00:00:44]} Nac6 {[%clk 00:01:42]} {[%emt 00:00:03]} 19.
Ng3 {[%clk 00:01:16]} {[%emt 00:00:14]} Nxd4 {[%clk 00:01:20]} {[%emt
00:00:28]} 20. cxd4 {[%clk 00:00:50]} {[%emt 00:00:31]} Nc6 {[%clk 00:01:19]}
{[%emt 00:00:05]} 21. Rad1 {[%clk 00:00:50]} {[%emt 00:00:05]} Nb4 {[%clk
00:01:11]} {[%emt 00:00:13]} 22. Rd2 {[%clk 00:00:52]} {[%emt 00:00:03]} Nc6
{[%clk 00:01:04]} {[%emt 00:00:12]} 23. Red1 {[%clk 00:00:49]} {[%emt
00:00:09]} Ba5 {[%clk 00:00:48]} {[%emt 00:00:21]} 24. Rf2 {[%clk 00:00:37]}
{[%emt 00:00:17]} Bb6 {[%clk 00:00:43]} {[%emt 00:00:09]} 25. Ne2 {[%clk
00:00:40]} {[%emt 00:00:02]} Nb4 {[%clk 00:00:27]} {[%emt 00:00:21]} 26. Nc3
{[%clk 00:00:40]} {[%emt 00:00:05]} a5 {[%clk 00:00:29]} {[%emt 00:00:03]} 27.
Rb2 {[%clk 00:00:34]} {[%emt 00:00:11]} Nc6 {[%clk 00:00:21]} {[%emt 00:00:13]}
28. Nd5 {[%clk 00:00:21]} {[%emt 00:00:18]} Ne7 {[%clk 00:00:19]} {[%emt
00:00:08]} 29. Nxb6 {[%clk 00:00:22]} {[%emt 00:00:04]} cxb6 {[%clk 00:00:23]}
30. d5 {[%clk 00:00:18]} {[%emt 00:00:10]} Nc8 {[%clk 00:00:23]} {[%emt
00:00:04]} 31. Bd4 {[%clk 00:00:21]} {[%emt 00:00:02]} Re7 {[%clk 00:00:17]}
{[%emt 00:00:11]} 32. Qg3 {[%clk 00:00:18]} {[%emt 00:00:08]} Bb5 {[%clk
00:00:16]} {[%emt 00:00:07]} 33. Rf2 {[%clk 00:00:21]} {[%emt 00:00:02]} Rc7
{[%clk 00:00:17]} {[%emt 00:00:04]} 34. g5 {[%clk 00:00:23]} {[%emt 00:00:03]}
fxg5 {[%clk 00:00:10]} {[%emt 00:00:12]} 35. fxg5 {[%clk 00:00:24]} {[%emt
00:00:04]} Qg6 {[%clk 00:00:13]} {[%emt 00:00:02]} 36. h4 {[%clk 00:00:14]}
{[%emt 00:00:15]} h5 {[%clk 00:00:12]} {[%emt 00:00:06]} 37. Re1 {[%clk
00:00:07]} {[%emt 00:00:12]} Bd3 {[%clk 00:00:14]} {[%emt 00:00:03]} 38. Qxd3
{[%clk 00:00:10]} {[%emt 00:00:02]} Re8 {[%clk 00:00:14]} {[%emt 00:00:06]} 39.
Rd1 {[%clk 00:00:10]} {[%emt 00:00:04]} Rce7 {[%clk 00:00:16]} {[%emt
00:00:03]} 40. e5 {[%clk 00:00:13]} {[%emt 00:00:02]} Qxd3 {[%clk 00:00:16]}
{[%emt 00:00:06]} 41. Rxd3 {[%clk 00:00:17]} dxe5 {[%clk 00:00:20]} {[%emt
00:00:01]} 42. Be3 {[%emt 00:00:03]} e4 {[%clk 00:00:22]} {[%emt 00:00:02]} 43.
Rc3 {[%clk 00:00:19]} {[%emt 00:00:05]} b5 {[%clk 00:00:25]} {[%emt 00:00:02]}
44. Bd4 {[%clk 00:00:11]} {[%emt 00:00:13]} Nd6 {[%clk 00:00:26]} {[%emt
00:00:04]} 45. Bc5 {[%clk 00:00:11]} {[%emt 00:00:06]} Rd7 {[%clk 00:00:27]}
{[%emt 00:00:04]} 46. Bxd6 {[%clk 00:00:14]} {[%emt 00:00:02]} Rxd6 {[%clk
00:00:31]} 47. Re3 {[%clk 00:00:13]} {[%emt 00:00:05]} Rxd5 {[%clk 00:00:34]}
{[%emt 00:00:02]} 48. Rxe4 {[%clk 00:00:16]} {[%emt 00:00:03]} Rd1+ {[%clk
00:00:36]} {[%emt 00:00:03]} 49. Kh2 {[%clk 00:00:18]} {[%emt 00:00:02]} Red8
{[%clk 00:00:38]} {[%emt 00:00:03]} 50. Rfe2 {[%clk 00:00:17]} {[%emt
00:00:07]} Kh7 {[%clk 00:00:40]} {[%emt 00:00:03]} 51. Re7 {[%clk 00:00:20]}
{[%emt 00:00:02]} R1d4 {[%clk 00:00:40]} {[%emt 00:00:05]} 52. Be4+ {[%clk
00:00:20]} {[%emt 00:00:05]} Kg8 {[%clk 00:00:43]} {[%emt 00:00:02]} 53. Kg3
{[%clk 00:00:15]} {[%emt 00:00:10]} Kf8 {[%clk 00:00:46]} {[%emt 00:00:02]} 54.
Rxb7 {[%clk 00:00:12]} {[%emt 00:00:08]} Re8 {[%clk 00:00:47]} {[%emt
00:00:04]} 55. Rf2+ {[%clk 00:00:11]} {[%emt 00:00:05]} Kg8 {[%clk 00:00:49]}
{[%emt 00:00:02]} 56. Bf3 {[%clk 00:00:12]} {[%emt 00:00:06]} b4 {[%clk
00:00:50]} {[%emt 00:00:04]} 57. Rb5 {[%clk 00:00:14]} {[%emt 00:00:02]} Re3
{[%clk 00:00:47]} {[%emt 00:00:09]} 58. Rxa5 {[%clk 00:00:11]} {[%emt
00:00:08]} Rg4+ {[%clk 00:00:49]} {[%emt 00:00:02]} 59. Kh3 {[%clk 00:00:13]}
{[%emt 00:00:03]} Rf4 {[%clk 00:00:48]} {[%emt 00:00:04]} 60. Kg3 {[%clk
00:00:10]} {[%emt 00:00:10]} Rg4+ {[%clk 00:00:52]} {[%emt 00:00:02]} 61. Kh3
{[%clk 00:00:13]} {[%emt 00:00:02]} Rf4 {[%clk 00:00:56]} 62. Kg2 {[%clk
00:00:16]} {[%emt 00:00:02]} Rxh4 {[%clk 00:00:54]} {[%emt 00:00:07]} 63. Bd5+
{[%clk 00:00:18]} {[%emt 00:00:03]} Kh7 {[%clk 00:00:56]} {[%emt 00:00:02]} 64.
Ra8 {[%clk 00:00:11]} {[%emt 00:00:12]} Rg4+ {[%clk 00:00:58]} {[%emt
00:00:03]} 65. Kf1 {[%clk 00:00:10]} {[%emt 00:00:06]} Rxg5 {[%clk 00:00:56]}
{[%emt 00:00:08]} 66. Bg8+ {[%clk 00:00:11]} {[%emt 00:00:03]} Kh6 {[%clk
00:00:59]} {[%emt 00:00:02]} 67. Ra6+ {[%clk 00:00:10]} {[%emt 00:00:07]} g6
{[%clk 00:01:01]} {[%emt 00:00:03]} 68. Rb6 {[%clk 00:00:11]} {[%emt 00:00:03]}
h4 {[%clk 00:00:57]} {[%emt 00:00:09]} 69. Rg2 {[%clk 00:00:08]} {[%emt
00:00:08]} Rf5+ {[%clk 00:00:58]} {[%emt 00:00:04]} 70. Kg1 {[%clk 00:00:10]}
{[%emt 00:00:03]} h3 {[%clk 00:00:31]} {[%emt 00:00:32]} 71. Rgxg6+ {[%clk
00:00:10]} {[%emt 00:00:06]} Kh5 {[%clk 00:00:34]} 72. Rh6+ {[%clk 00:00:13]}
{[%emt 00:00:02]} Kg5 {[%clk 00:00:38]} {[%emt 00:00:02]} 73. Rbg6+ {[%clk
00:00:15]} {[%emt 00:00:02]} Kf4 {[%clk 00:00:42]} {[%emt 00:00:01]} 74. Rh4+
{[%clk 00:00:15]} {[%emt 00:00:05]} Kf3 {[%clk 00:00:41]} {[%emt 00:00:06]} 75.
Rxh3+ {[%clk 00:00:16]} {[%emt 00:00:04]} Ke2 {[%clk 00:00:43]} {[%emt
00:00:03]} 76. Rg2+ {[%clk 00:00:17]} {[%emt 00:00:04]} Kd3 {[%clk 00:00:45]}
{[%emt 00:00:04]} 77. Bc4+ {[%clk 00:00:15]} {[%emt 00:00:06]} Ke4 {[%clk
00:00:43]} {[%emt 00:00:08]} 78. Rg4+ {[%clk 00:00:09]} {[%emt 00:00:10]} 1-0

[Event "MČR juniorů a juniorek v rapid šachu 2023"]
[Site "Czech Republic"]
[Date "2023.09.23"]
[Round "1.8"]
[White "Dolensky, Filip"]
[Black "Housa, Vojtech"]
[Result "1-0"]
[TimeControl "20 min + 5 sec per move"]
[WhiteFideId "399000"]
[BlackFideId "23736364"]
[WhiteElo "1942"]
[BlackElo "1539"]

1. e4 {[%clk 00:20:07]} {[%emt 00:00:02]} c5 {[%clk 00:20:07]} {[%emt
00:00:04]} 2. c3 {[%clk 00:20:11]} {[%emt 00:00:01]} g6 {[%clk 00:19:48]}
{[%emt 00:00:24]} 3. Nf3 {[%clk 00:20:10]} {[%emt 00:00:05]} Bg7 {[%clk
00:19:47]} {[%emt 00:00:06]} 4. d4 {[%clk 00:20:14]} cxd4 {[%clk 00:19:42]}
{[%emt 00:00:10]} 5. cxd4 {[%clk 00:20:18]} d6 {[%clk 00:19:15]} {[%emt
00:00:33]} 6. Nc3 {[%clk 00:20:20]} {[%emt 00:00:03]} Nf6 {[%clk 00:19:05]}
{[%emt 00:00:15]} 7. Be2 {[%clk 00:20:18]} {[%emt 00:00:07]} O-O {[%clk
00:18:54]} {[%emt 00:00:15]} 8. h3 {[%clk 00:20:21]} {[%emt 00:00:02]} h5
{[%clk 00:18:19]} {[%emt 00:00:39]} 9. Be3 {[%clk 00:20:22]} {[%emt 00:00:04]}
Qa5 {[%clk 00:17:27]} {[%emt 00:00:58]} 10. O-O {[%clk 00:20:10]} {[%emt
00:00:16]} Bd7 {[%clk 00:15:49]} {[%emt 00:01:43]} 11. Qd2 {[%clk 00:20:00]}
{[%emt 00:00:16]} a6 {[%clk 00:15:20]} {[%emt 00:00:35]} 12. Rac1 {[%clk
00:18:14]} {[%emt 00:01:50]} Nc6 {[%clk 00:14:29]} {[%emt 00:00:56]} 13. a3
{[%clk 00:17:50]} {[%emt 00:00:29]} Rac8 {[%clk 00:13:33]} {[%emt 00:01:01]} 14.
Bd3 {[%clk 00:16:44]} Na7 {[%clk 00:11:37]} {[%emt 00:03:12]} 15. e5 {[%clk
00:11:12]} {[%emt 00:05:38]} Nh7 {[%clk 00:09:47]} {[%emt 00:01:55]} 16. Be4
{[%clk 00:09:21]} {[%emt 00:01:56]} Nc6 {[%clk 00:08:37]} {[%emt 00:01:15]} 17.
b4 {[%clk 00:08:37]} {[%emt 00:00:49]} Qd8 {[%clk 00:07:22]} {[%emt 00:01:19]}
18. exd6 exd6 {[%clk 00:06:07]} 19. Bf4 {[%clk 00:07:23]} Nf6 {[%clk 00:05:24]}
{[%emt 00:00:48]} 20. Bb1 {[%emt 00:02:02]} d5 {[%clk 00:04:48]} {[%emt
00:00:02]} 21. Rfe1 {[%clk 00:06:07]} {[%emt 00:00:03]} Qb6 {[%clk 00:03:58]}
{[%emt 00:00:55]} 22. Na4 {[%clk 00:05:45]} {[%emt 00:00:28]} Qd8 {[%clk
00:03:02]} {[%emt 00:01:01]} 23. Nc5 {[%clk 00:05:43]} {[%emt 00:00:07]} Ne4
{[%clk 00:02:29]} {[%emt 00:00:37]} 24. Nxe4 {[%clk 00:05:26]} {[%emt
00:00:22]} dxe4 {[%clk 00:02:33]} {[%emt 00:00:02]} 25. Bxe4 {[%clk 00:05:28]}
{[%emt 00:00:02]} Re8 {[%clk 00:02:20]} {[%emt 00:00:18]} 26. Bb1 {[%clk
00:04:28]} {[%emt 00:01:06]} Be6 {[%clk 00:02:01]} {[%emt 00:00:25]} 27. Be3
{[%clk 00:02:50]} {[%emt 00:01:24]} Bd5 28. Nh2 {[%clk 00:02:38]} {[%emt
00:01:31]} Qd7 29. Rcd1 {[%emt 00:00:30]} Ne7 {[%emt 00:00:38]} 30. Bf4 {[%clk
00:02:15]} {[%emt 00:00:12]} Nc6 {[%clk 00:00:30]} {[%emt 00:00:09]} 31. Be3
{[%clk 00:01:38]} {[%emt 00:00:41]} Ne7 {[%clk 00:00:33]} {[%emt 00:00:02]} 32.
Ba2 {[%emt 00:00:03]} Nf5 {[%clk 00:00:33]} {[%emt 00:00:03]} 33. Bxd5 {[%clk
00:01:44]} {[%emt 00:00:03]} Qxd5 {[%clk 00:00:34]} {[%emt 00:00:05]} 34. Nf3
{[%clk 00:01:46]} {[%emt 00:00:03]} Re4 {[%clk 00:00:12]} {[%emt 00:00:26]} 35.
Rc1 {[%clk 00:01:35]} {[%emt 00:00:16]} Rce8 {[%clk 00:00:16]} 36. Rc5 {[%emt
00:00:37]} Qd7 37. d5 {[%clk 00:01:12]} {[%emt 00:00:08]} Nxe3 {[%clk
00:00:10]} {[%emt 00:00:03]} 38. Rxe3 {[%clk 00:01:13]} {[%emt 00:00:04]} b6
{[%clk 00:00:07]} {[%emt 00:00:09]} 39. Rc1 {[%clk 00:01:08]} {[%emt 00:00:10]}
Bh6 {[%clk 00:00:10]} {[%emt 00:00:02]} 40. Rce1 {[%clk 00:00:48]} {[%emt
00:00:24]} Bxe3 {[%clk 00:00:14]} {[%emt 00:00:02]} 41. Rxe3 {[%clk 00:00:52]}
Rxe3 {[%clk 00:00:17]} {[%emt 00:00:03]} 42. fxe3 {[%emt 00:00:02]} Qe7 {[%clk
00:00:19]} {[%emt 00:00:01]} 43. Kf2 {[%clk 00:00:47]} {[%emt 00:00:14]} Qd6
{[%clk 00:00:22]} {[%emt 00:00:02]} 44. Qd4 {[%clk 00:00:46]} {[%emt 00:00:06]}
Rd8 {[%clk 00:00:25]} {[%emt 00:00:03]} 45. e4 {[%clk 00:00:49]} {[%emt
00:00:02]} f6 {[%clk 00:00:28]} {[%emt 00:00:02]} 46. Qe3 {[%clk 00:00:31]}
{[%emt 00:00:23]} Kg7 {[%clk 00:00:18]} {[%emt 00:00:14]} 47. Nd4 {[%clk
00:00:33]} {[%emt 00:00:03]} Qe5 {[%clk 00:00:17]} {[%emt 00:00:07]} 48. Ne6+
{[%clk 00:00:37]} {[%emt 00:00:01]} Kh7 {[%clk 00:00:14]} {[%emt 00:00:07]} 49.
Nxd8 {[%clk 00:00:39]} {[%emt 00:00:03]} Qb2+ {[%clk 00:00:18]} {[%emt
00:00:02]} 50. Kg1 {[%clk 00:00:31]} {[%emt 00:00:12]} Qb1+ {[%clk 00:00:21]}
{[%emt 00:00:02]} 51. Kh2 {[%clk 00:00:35]} {[%emt 00:00:01]} 1-0

[Event "MČR juniorů a juniorek v rapid šachu 2023"]
[Site "Czech Republic"]
[Date "2023.09.23"]
[Round "1.9"]
[White "Stary, Simon"]
[Black "Bezdek, Tomas"]
[Result "1/2-1/2"]
[TimeControl "20 min + 5 sec per move"]
[WhiteFideId "23734353"]
[BlackFideId "23733551"]
[WhiteElo "1518"]
[BlackElo "1933"]

1. e4 {[%clk 00:20:08]} {[%emt 00:00:01]} e6 {[%clk 00:19:17]} {[%emt
00:00:53]} 2. d4 {[%clk 00:20:12]} {[%emt 00:00:02]} d5 {[%clk 00:19:21]}
{[%emt 00:00:01]} 3. Nd2 {[%clk 00:20:15]} {[%emt 00:00:01]} c5 {[%clk
00:19:23]} {[%emt 00:00:04]} 4. exd5 {[%clk 00:20:19]} {[%emt 00:00:01]} Qxd5
{[%clk 00:19:06]} {[%emt 00:00:22]} 5. Ngf3 {[%clk 00:20:22]} {[%emt 00:00:02]}
cxd4 {[%clk 00:19:10]} 6. Bc4 {[%clk 00:20:25]} {[%emt 00:00:03]} Qd6 {[%clk
00:19:14]} 7. O-O {[%clk 00:20:09]} {[%emt 00:00:21]} Nf6 {[%clk 00:19:17]}
{[%emt 00:00:02]} 8. Nb3 {[%clk 00:20:13]} {[%emt 00:00:01]} Nc6 {[%clk
00:19:19]} {[%emt 00:00:03]} 9. Nbxd4 {[%clk 00:20:14]} {[%emt 00:00:04]} Nxd4
{[%clk 00:19:15]} {[%emt 00:00:09]} 10. Qxd4 {[%clk 00:20:10]} {[%emt
00:00:10]} Qxd4 {[%clk 00:19:16]} {[%emt 00:00:04]} 11. Nxd4 {[%clk 00:20:13]}
Bc5 {[%clk 00:19:19]} {[%emt 00:00:02]} 12. Nf3 {[%clk 00:19:52]} {[%emt
00:00:26]} Bd7 {[%clk 00:19:13]} {[%emt 00:00:12]} 13. Ne5 {[%clk 00:19:47]}
{[%emt 00:00:10]} Ke7 {[%clk 00:16:20]} {[%emt 00:02:58]} 14. Nxd7 {[%clk
00:19:33]} {[%emt 00:00:18]} Nxd7 {[%clk 00:16:19]} {[%emt 00:00:06]} 15. Bg5+
{[%clk 00:19:21]} {[%emt 00:00:17]} f6 {[%clk 00:14:46]} {[%emt 00:01:38]} 16.
Bd2 {[%clk 00:19:07]} {[%emt 00:00:19]} Rhd8 {[%clk 00:06:40]} {[%emt
00:08:11]} 17. Bc3 {[%clk 00:18:22]} {[%emt 00:00:51]} Nb6 {[%clk 00:05:44]}
{[%emt 00:01:00]} 18. Bb3 {[%clk 00:17:13]} {[%emt 00:01:14]} Nd5 {[%clk
00:05:47]} {[%emt 00:00:02]} 19. Bxd5 {[%clk 00:17:16]} {[%emt 00:00:02]} Rxd5
{[%clk 00:05:50]} 20. Rfd1 {[%clk 00:17:18]} {[%emt 00:00:04]} Rad8 {[%clk
00:05:53]} {[%emt 00:00:02]} 21. Rxd5 {[%clk 00:17:10]} {[%emt 00:00:14]} Rxd5
{[%clk 00:05:56]} {[%emt 00:00:01]} 22. Kf1 {[%clk 00:17:07]} {[%emt 00:00:09]}
b5 {[%clk 00:04:32]} {[%emt 00:01:29]} 23. Ke2 {[%clk 00:14:09]} {[%emt
00:03:02]} Rg5 {[%clk 00:02:15]} {[%emt 00:02:23]} 24. g3 {[%clk 00:13:18]}
{[%emt 00:00:57]} h5 {[%clk 00:01:42]} {[%emt 00:00:38]} 25. Rd1 {[%clk
00:11:13]} {[%emt 00:02:09]} h4 {[%clk 00:01:41]} {[%emt 00:00:06]} 26. Bd4
{[%clk 00:10:57]} {[%emt 00:00:22]} hxg3 {[%clk 00:01:28]} {[%emt 00:00:17]} 27.
hxg3 {[%clk 00:10:55]} {[%emt 00:00:07]} a6 {[%clk 00:01:11]} {[%emt 00:00:22]}
28. Bxc5+ {[%clk 00:10:38]} {[%emt 00:00:22]} Rxc5 {[%clk 00:01:15]} {[%emt
00:00:02]} 29. c3 {[%clk 00:09:32]} {[%emt 00:01:09]} Re5+ {[%clk 00:01:18]}
{[%emt 00:00:02]} 30. Kf3 {[%clk 00:09:29]} {[%emt 00:00:09]} Rc5 {[%clk
00:01:03]} {[%emt 00:00:19]} 31. Rd4 {[%clk 00:09:08]} {[%emt 00:00:27]} Re5
{[%clk 00:00:48]} {[%emt 00:00:20]} 32. a4 {[%clk 00:08:37]} {[%emt 00:00:37]}
Rf5+ {[%clk 00:00:46]} {[%emt 00:00:07]} 1/2-1/2